[Event "Late-Titled-Tuesday-Blitz-February-20-2024"]
[Site "Chess.com"]
[Date "2024.02.20"]
[Round "9"]
[White "Alphafischer2019"]
[Black "GiorgianBarbosa"]
[Result "1-0"]
[WhiteElo "2681"]
[BlackElo "2512"]
[TimeControl "180+1"]
[EndTime "15:44:50 PST"]
[Termination "Alphafischer2019 won by checkmate"]

1. Nf3 {[%clk 0:03:00.9]} 1... Nf6 {[%clk 0:02:37.4]} 2. g3 {[%clk 0:03:00.4]}
2... e6 {[%clk 0:02:37.6]} 3. Bg2 {[%clk 0:03:01]} 3... d5 {[%clk 0:02:38.5]} 4.
c4 {[%clk 0:02:59.7]} 4... Be7 {[%clk 0:02:39.4]} 5. cxd5 {[%clk 0:02:59.3]}
5... exd5 {[%clk 0:02:40]} 6. O-O {[%clk 0:02:59.9]} 6... O-O {[%clk 0:02:40.7]}
7. d3 {[%clk 0:03:00.5]} 7... c5 {[%clk 0:02:40.3]} 8. Nbd2 {[%clk 0:02:49.1]}
8... Nc6 {[%clk 0:02:39.6]} 9. b3 {[%clk 0:02:49.8]} 9... Re8 {[%clk 0:02:36.8]}
10. Bb2 {[%clk 0:02:48.7]} 10... b6 {[%clk 0:02:37.1]} 11. Rc1 {[%clk
0:02:49.4]} 11... Bb7 {[%clk 0:02:36.4]} 12. a3 {[%clk 0:02:48]} 12... d4 {[%clk
0:02:35.2]} 13. Nxd4 {[%clk 0:02:05.6]} 13... cxd4 {[%clk 0:02:02.1]} 14. Bxc6
{[%clk 0:02:05.1]} 14... Bxc6 {[%clk 0:02:03]} 15. Rxc6 {[%clk 0:02:05.6]} 15...
Bc5 {[%clk 0:01:52.3]} 16. b4 {[%clk 0:01:59.5]} 16... Bf8 {[%clk 0:01:46]} 17.
Nf3 {[%clk 0:01:53.9]} 17... Qd7 {[%clk 0:01:27.9]} 18. Rc4 {[%clk 0:01:51.9]}
18... Qe6 {[%clk 0:01:12.1]} 19. Nxd4 {[%clk 0:01:48.7]} 19... Qh3 {[%clk
0:01:13]} 20. Nf3 {[%clk 0:01:44.5]} 20... Ng4 {[%clk 0:01:12.9]} 21. Qd2 {[%clk
0:01:36.1]} 21... h5 {[%clk 0:01:04.8]} 22. Re1 {[%clk 0:01:28.5]} 22... Re6
{[%clk 0:00:53.9]} 23. Qg5 {[%clk 0:01:25.6]} 23... Rae8 {[%clk 0:00:46]} 24. e3
{[%clk 0:01:23.8]} 24... Rg6 {[%clk 0:00:38.7]} 25. Qh4 {[%clk 0:01:17.6]} 25...
Qxh4 {[%clk 0:00:37.1]} 26. Nxh4 {[%clk 0:01:17.6]} 26... Rf6 {[%clk 0:00:37.5]}
27. Bxf6 {[%clk 0:01:16.7]} 27... Nxf6 {[%clk 0:00:38.4]} 28. Rec1 {[%clk
0:01:16.6]} 28... Re6 {[%clk 0:00:34.6]} 29. Rc8 {[%clk 0:01:15.8]} 29... g6
{[%clk 0:00:34.5]} 30. Ra8 {[%clk 0:01:15]} 30... a5 {[%clk 0:00:23.9]} 31. Rcc8
{[%clk 0:01:14.2]} 31... Nd7 {[%clk 0:00:23.1]} 32. Rd8 {[%clk 0:01:12.8]} 32...
Rd6 {[%clk 0:00:24]} 33. d4 {[%clk 0:01:10.8]} 33... axb4 {[%clk 0:00:24.1]} 34.
axb4 {[%clk 0:01:11.6]} 34... Kg7 {[%clk 0:00:25]} 35. Nf3 {[%clk 0:01:12.1]}
35... Be7 {[%clk 0:00:24.9]} 36. Re8 {[%clk 0:01:08.6]} 36... Bf6 {[%clk
0:00:24.4]} 37. Rad8 {[%clk 0:01:01.1]} 37... b5 {[%clk 0:00:20.6]} 38. Ne5
{[%clk 0:00:59]} 38... Bxd8 {[%clk 0:00:09.1]} 39. Rxd8 {[%clk 0:00:57.9]} 39...
Ra6 {[%clk 0:00:04.8]} 40. Rxd7 {[%clk 0:00:57.7]} 40... Ra1+ {[%clk 0:00:05.2]}
41. Kg2 {[%clk 0:00:58.2]} 41... Rb1 {[%clk 0:00:04.9]} 42. Rxf7+ {[%clk
0:00:58.8]} 42... Kh6 {[%clk 0:00:05.2]} 43. Rf6 {[%clk 0:00:58.9]} 43... Rxb4
{[%clk 0:00:06.1]} 44. Rxg6+ {[%clk 0:00:59.4]} 44... Kh7 {[%clk 0:00:06.8]} 45.
Rg5 {[%clk 0:00:59.3]} 45... Rb1 {[%clk 0:00:07.6]} 46. Rxh5+ {[%clk 0:00:59.5]}
46... Kg7 {[%clk 0:00:08.5]} 47. Nd3 {[%clk 0:01:00.1]} 47... Kf6 {[%clk
0:00:09.4]} 48. Re5 {[%clk 0:00:58.3]} 48... b4 {[%clk 0:00:10.3]} 49. Nxb4
{[%clk 0:00:58.3]} 49... Rxb4 {[%clk 0:00:11.2]} 50. h4 {[%clk 0:00:58.7]} 50...
Rb2 {[%clk 0:00:12.1]} 51. h5 {[%clk 0:00:59.3]} 51... Rb1 {[%clk 0:00:13]} 52.
g4 {[%clk 0:00:59.8]} 52... Rb8 {[%clk 0:00:13.9]} 53. g5+ {[%clk 0:01:00.5]}
53... Kg7 {[%clk 0:00:13.9]} 54. f4 {[%clk 0:01:01.3]} 54... Kh7 {[%clk
0:00:14.8]} 55. f5 {[%clk 0:01:01.6]} 55... Rf8 {[%clk 0:00:15.2]} 56. f6 {[%clk
0:01:01.9]} 56... Rb8 {[%clk 0:00:12.9]} 57. Re7+ {[%clk 0:01:01.8]} 57... Kh8
{[%clk 0:00:12.6]} 58. e4 {[%clk 0:01:02.2]} 58... Rb3 {[%clk 0:00:11.9]} 59. d5
{[%clk 0:01:02.4]} 59... Rc3 {[%clk 0:00:09.8]} 60. g6 {[%clk 0:01:02.4]} 60...
Rc8 {[%clk 0:00:08.3]} 61. e5 {[%clk 0:01:02.5]} 61... Rd8 {[%clk 0:00:08.5]}
62. d6 {[%clk 0:01:02.5]} 62... Rf8 {[%clk 0:00:09]} 63. h6 {[%clk 0:01:01.6]}
63... Ra8 {[%clk 0:00:07.5]} 64. Rh7+ {[%clk 0:00:59.3]} 64... Kg8 {[%clk
0:00:07.5]} 65. f7+ {[%clk 0:01:00.2]} 65... Kf8 {[%clk 0:00:07.7]} 66. Rh8#
{[%clk 0:00:46.9]} 1-0

[Event "Late-Titled-Tuesday-Blitz-February-20-2024"]
[Site "Chess.com"]
[Date "2024.02.20"]
[Round "9"]
[White "CFalcons8"]
[Black "WilsonPalencia21"]
[Result "0-1"]
[WhiteElo "2420"]
[BlackElo "2546"]
[TimeControl "180+1"]
[EndTime "15:44:51 PST"]
[Termination "WilsonPalencia21 won by resignation"]

1. c4 {[%clk 0:03:00.9]} 1... c5 {[%clk 0:02:58.8]} 2. e4 {[%clk 0:02:57.7]}
2... g6 {[%clk 0:02:57.9]} 3. Nf3 {[%clk 0:02:48.6]} 3... Bg7 {[%clk 0:02:57.5]}
4. d4 {[%clk 0:02:48.3]} 4... d6 {[%clk 0:02:55]} 5. Nc3 {[%clk 0:02:47.8]} 5...
Nf6 {[%clk 0:02:53.4]} 6. h3 {[%clk 0:02:45.6]} 6... O-O {[%clk 0:02:52.7]} 7.
Be3 {[%clk 0:02:42.6]} 7... Qa5 {[%clk 0:02:50.1]} 8. Qc2 {[%clk 0:02:23.4]}
8... Nc6 {[%clk 0:02:41.8]} 9. a3 {[%clk 0:02:18.4]} 9... cxd4 {[%clk
0:02:37.5]} 10. Nxd4 {[%clk 0:02:19.3]} 10... Bd7 {[%clk 0:02:32.3]} 11. Be2
{[%clk 0:02:17.7]} 11... Rfc8 {[%clk 0:02:28.6]} 12. O-O {[%clk 0:02:05.1]}
12... Nxd4 {[%clk 0:02:28.6]} 13. Bxd4 {[%clk 0:02:06]} 13... Bc6 {[%clk
0:02:28.2]} 14. f3 {[%clk 0:02:00.2]} 14... Qd8 {[%clk 0:02:26.8]} 15. Qd2
{[%clk 0:01:59.2]} 15... Nd7 {[%clk 0:02:24.8]} 16. b4 {[%clk 0:01:52.9]} 16...
Bxd4+ {[%clk 0:02:16.7]} 17. Qxd4 {[%clk 0:01:53.8]} 17... Qb6 {[%clk
0:02:12.7]} 18. Qxb6 {[%clk 0:01:38.9]} 18... Nxb6 {[%clk 0:02:10.6]} 19. Rac1
{[%clk 0:01:31.8]} 19... a5 {[%clk 0:02:05.9]} 20. c5 {[%clk 0:01:25.4]} 20...
axb4 {[%clk 0:02:02.3]} 21. axb4 {[%clk 0:01:24]} 21... dxc5 {[%clk 0:02:02.4]}
22. bxc5 {[%clk 0:01:24.9]} 22... Nd7 {[%clk 0:01:58.5]} 23. Bc4 {[%clk
0:01:00.1]} 23... Nxc5 {[%clk 0:01:54.4]} 24. Nd5 {[%clk 0:00:59.9]} 24... Bxd5
{[%clk 0:01:50.8]} 25. Bxd5 {[%clk 0:01:00.8]} 25... e6 {[%clk 0:01:49.6]} 26.
Bc4 {[%clk 0:00:58.6]} 26... b6 {[%clk 0:01:45.4]} 27. Rb1 {[%clk 0:00:56.2]}
27... Rab8 {[%clk 0:01:43.5]} 28. Rb4 {[%clk 0:00:54.2]} 28... Rd8 {[%clk
0:01:34.1]} 29. Rfb1 {[%clk 0:00:52.1]} 29... Rd4 {[%clk 0:01:34]} 30. Be2
{[%clk 0:00:34.6]} 30... Rxb4 {[%clk 0:01:30]} 31. Rxb4 {[%clk 0:00:35.5]} 31...
Kf8 {[%clk 0:01:29.4]} 32. Kf2 {[%clk 0:00:35.5]} 32... e5 {[%clk 0:01:29.5]}
33. Ke3 {[%clk 0:00:35.4]} 33... Ke7 {[%clk 0:01:29.8]} 34. Bc4 {[%clk
0:00:35.4]} 34... f6 {[%clk 0:01:28.9]} 35. Bd5 {[%clk 0:00:35.6]} 35... Kd6
{[%clk 0:01:25.5]} 36. Rb5 {[%clk 0:00:30.3]} 36... f5 {[%clk 0:01:17.4]} 37. g4
{[%clk 0:00:27.6]} 37... f4+ {[%clk 0:01:17.1]} 38. Kd2 {[%clk 0:00:26.5]} 38...
Na6 {[%clk 0:01:11.3]} 39. Rb1 {[%clk 0:00:20.2]} 39... b5 {[%clk 0:01:09.7]}
40. Kc3 {[%clk 0:00:20.1]} 40... Kc5 {[%clk 0:01:07]} 41. Kb3 {[%clk 0:00:19.4]}
41... Kb6 {[%clk 0:01:03]} 42. h4 {[%clk 0:00:16]} 42... Rc8 {[%clk 0:01:02.9]}
43. h5 {[%clk 0:00:14.3]} 43... Rc7 {[%clk 0:00:57.2]} 44. hxg6 {[%clk
0:00:12.8]} 44... hxg6 {[%clk 0:00:57.3]} 45. Rh1 {[%clk 0:00:13.6]} 45... Nc5+
{[%clk 0:00:51.6]} 46. Kb2 {[%clk 0:00:13.3]} 46... Nd3+ {[%clk 0:00:51.5]} 47.
Kb3 {[%clk 0:00:12.9]} 47... b4 {[%clk 0:00:48.5]} 48. Bc4 {[%clk 0:00:07.8]}
48... Rd7 {[%clk 0:00:46.7]} 49. Rh6 {[%clk 0:00:06.8]} 49... Kc5 {[%clk
0:00:45.3]} 50. Rxg6 {[%clk 0:00:05.8]} 50... Nc1+ {[%clk 0:00:44.9]} 51. Kc2
{[%clk 0:00:06]} 51... Kxc4 {[%clk 0:00:43.5]} 52. Kxc1 {[%clk 0:00:06.4]} 52...
Rd3 {[%clk 0:00:43]} 53. Re6 {[%clk 0:00:06.6]} 53... Rxf3 {[%clk 0:00:37.4]}
54. Rxe5 {[%clk 0:00:07.1]} 54... Kc3 {[%clk 0:00:34.7]} 55. Rc5+ {[%clk
0:00:06.9]} 55... Kd4 {[%clk 0:00:35.3]} 56. Rb5 {[%clk 0:00:06.8]} 56... Kxe4
{[%clk 0:00:35.8]} 57. Rxb4+ {[%clk 0:00:07.2]} 57... Ke5 {[%clk 0:00:36.3]} 58.
Kd2 {[%clk 0:00:07.7]} 58... Rg3 {[%clk 0:00:36.8]} 59. Rb5+ {[%clk 0:00:08]}
59... Ke4 {[%clk 0:00:37]} 60. g5 {[%clk 0:00:08.1]} 60... Rg2+ {[%clk
0:00:37.5]} 61. Ke1 {[%clk 0:00:08.2]} 61... Ke3 {[%clk 0:00:37.1]} 62. Rb3+
{[%clk 0:00:08]} 62... Ke4 {[%clk 0:00:37.1]} 63. Rb5 {[%clk 0:00:08.3]} 63...
Kf3 {[%clk 0:00:36.5]} 64. Kf1 {[%clk 0:00:08.5]} 64... Rh2 {[%clk 0:00:36]} 65.
Rb3+ {[%clk 0:00:08.2]} 65... Kg4 {[%clk 0:00:35.9]} 66. Kg1 {[%clk 0:00:08.3]}
66... Rh5 {[%clk 0:00:34.5]} 67. Rb5 {[%clk 0:00:08.3]} 67... Kg3 {[%clk
0:00:30.6]} 68. g6 {[%clk 0:00:06.9]} 68... Rxb5 {[%clk 0:00:29.9]} 0-1

[Event "Late-Titled-Tuesday-Blitz-February-20-2024"]
[Site "Chess.com"]
[Date "2024.02.20"]
[Round "9"]
[White "Hrant_ChessMood"]
[Black "DarkAlekhine"]
[Result "1-0"]
[WhiteElo "3009"]
[BlackElo "2850"]
[TimeControl "180+1"]
[EndTime "15:44:52 PST"]
[Termination "Hrant_ChessMood won on time"]

1. Nf3 {[%clk 0:02:44.9]} 1... g6 {[%clk 0:02:58.7]} 2. e4 {[%clk 0:02:44.1]}
2... Bg7 {[%clk 0:02:59.1]} 3. d4 {[%clk 0:02:44.3]} 3... d6 {[%clk 0:02:59.7]}
4. Bc4 {[%clk 0:02:44.1]} 4... Nf6 {[%clk 0:02:59.4]} 5. Qe2 {[%clk 0:02:44.3]}
5... O-O {[%clk 0:02:58.5]} 6. O-O {[%clk 0:02:44.3]} 6... c6 {[%clk 0:02:55.6]}
7. e5 {[%clk 0:02:40.2]} 7... Nd5 {[%clk 0:02:55.1]} 8. Bg5 {[%clk 0:02:36]}
8... h6 {[%clk 0:02:35.1]} 9. Bh4 {[%clk 0:02:35.2]} 9... Be6 {[%clk 0:02:33.8]}
10. Bxd5 {[%clk 0:02:21]} 10... cxd5 {[%clk 0:02:15.4]} 11. c3 {[%clk
0:02:04.5]} 11... Nc6 {[%clk 0:02:11.8]} 12. Nbd2 {[%clk 0:01:51.7]} 12... dxe5
{[%clk 0:01:31.4]} 13. Nxe5 {[%clk 0:01:48.4]} 13... Nxe5 {[%clk 0:01:31.1]} 14.
dxe5 {[%clk 0:01:49.1]} 14... d4 {[%clk 0:01:25.9]} 15. cxd4 {[%clk 0:01:47.2]}
15... g5 {[%clk 0:01:25.9]} 16. Bg3 {[%clk 0:01:41]} 16... Qxd4 {[%clk
0:01:26.1]} 17. Nf3 {[%clk 0:01:37.5]} 17... Qc4 {[%clk 0:01:23.1]} 18. Qe3
{[%clk 0:01:29.9]} 18... Bd5 {[%clk 0:01:16.7]} 19. Rfc1 {[%clk 0:01:19.5]}
19... Qe4 {[%clk 0:01:16.5]} 20. Qxe4 {[%clk 0:01:16.7]} 20... Bxe4 {[%clk
0:01:17.4]} 21. Rc7 {[%clk 0:01:17.1]} 21... e6 {[%clk 0:01:15]} 22. Re1 {[%clk
0:01:07.2]} 22... Bd5 {[%clk 0:01:09.2]} 23. h4 {[%clk 0:01:07.1]} 23... Rfc8
{[%clk 0:00:59]} 24. Rec1 {[%clk 0:00:58.5]} 24... Rxc7 {[%clk 0:00:59]} 25.
Rxc7 {[%clk 0:00:59.4]} 25... g4 {[%clk 0:00:38.1]} 26. Nh2 {[%clk 0:00:45]}
26... h5 {[%clk 0:00:37.6]} 27. Nf1 {[%clk 0:00:44.6]} 27... Bxa2 {[%clk
0:00:36.7]} 28. Bf4 {[%clk 0:00:37.3]} 28... Bd5 {[%clk 0:00:33.3]} 29. Ng3
{[%clk 0:00:37.4]} 29... a5 {[%clk 0:00:24.5]} 30. Nxh5 {[%clk 0:00:37.8]} 30...
b5 {[%clk 0:00:23.1]} 31. Nf6+ {[%clk 0:00:31.7]} 31... Bxf6 {[%clk 0:00:22.6]}
32. exf6 {[%clk 0:00:32.6]} 32... b4 {[%clk 0:00:19.7]} 33. Bd6 {[%clk 0:00:30]}
33... Ra6 {[%clk 0:00:10.6]} 34. Rd7 {[%clk 0:00:23.2]} 34... Kh7 {[%clk
0:00:06.5]} 35. Rxf7+ {[%clk 0:00:19.3]} 35... Kg6 {[%clk 0:00:06.9]} 36. Rd7
{[%clk 0:00:18.5]} 36... Kxf6 {[%clk 0:00:07.3]} 37. Kh2 {[%clk 0:00:11.1]}
37... Rc6 {[%clk 0:00:06.5]} 38. Kg3 {[%clk 0:00:11]} 38... Rc2 {[%clk
0:00:06.6]} 39. Ra7 {[%clk 0:00:09.9]} 39... Rxb2 {[%clk 0:00:06]} 40. Rxa5
{[%clk 0:00:09.8]} 40... b3 {[%clk 0:00:06.3]} 41. Rb5 {[%clk 0:00:09.2]} 41...
Rb1 {[%clk 0:00:06.2]} 42. Bf4 {[%clk 0:00:08.2]} 42... Bc4 {[%clk 0:00:04.6]}
43. Rb4 {[%clk 0:00:07.7]} 43... Bd5 {[%clk 0:00:04.7]} 44. h5 {[%clk
0:00:06.6]} 44... Rh1 {[%clk 0:00:04.5]} 45. h6 {[%clk 0:00:06.4]} 45... Rh5
{[%clk 0:00:04.1]} 46. Be3 {[%clk 0:00:06.7]} 46... Rf5 {[%clk 0:00:03.7]} 47.
Rxg4 {[%clk 0:00:06]} 47... Re5 {[%clk 0:00:02.3]} 48. Bd4 {[%clk 0:00:04.8]}
48... Kf5 {[%clk 0:00:02.2]} 49. Bxe5 {[%clk 0:00:05.3]} 49... Kxe5 {[%clk
0:00:02.8]} 50. h7 {[%clk 0:00:05.6]} 1-0

[Event "Late-Titled-Tuesday-Blitz-February-20-2024"]
[Site "Chess.com"]
[Date "2024.02.20"]
[Round "9"]
[White "Balla_Tamas"]
[Black "Herman-NY"]
[Result "0-1"]
[WhiteElo "2390"]
[BlackElo "2516"]
[TimeControl "180+1"]
[EndTime "15:44:52 PST"]
[Termination "Herman-NY won by checkmate"]

1. e4 {[%clk 0:03:00.9]} 1... e5 {[%clk 0:03:00]} 2. Nf3 {[%clk 0:03:00.4]} 2...
Nc6 {[%clk 0:03:00.6]} 3. d4 {[%clk 0:03:00.7]} 3... exd4 {[%clk 0:03:00.5]} 4.
Nxd4 {[%clk 0:03:01.6]} 4... Qf6 {[%clk 0:03:01]} 5. Nxc6 {[%clk 0:02:59.1]}
5... Bc5 {[%clk 0:02:58]} 6. Qe2 {[%clk 0:02:36]} 6... dxc6 {[%clk 0:02:52.5]}
7. Nc3 {[%clk 0:02:35.7]} 7... Ne7 {[%clk 0:02:48]} 8. Be3 {[%clk 0:02:34.4]}
8... Bb4 {[%clk 0:02:39.9]} 9. Bd2 {[%clk 0:02:33.7]} 9... O-O {[%clk 0:02:35]}
10. g3 {[%clk 0:02:34]} 10... Ng6 {[%clk 0:02:31.8]} 11. Bg2 {[%clk 0:02:31]}
11... Qe6 {[%clk 0:01:52.8]} 12. O-O {[%clk 0:02:21.2]} 12... f5 {[%clk
0:01:52.2]} 13. a3 {[%clk 0:02:11.6]} 13... Bxc3 {[%clk 0:01:46.5]} 14. Bxc3
{[%clk 0:02:10.9]} 14... f4 {[%clk 0:01:47.2]} 15. Rad1 {[%clk 0:01:50.6]} 15...
Bd7 {[%clk 0:01:45]} 16. f3 {[%clk 0:01:44.6]} 16... a5 {[%clk 0:01:09]} 17. g4
{[%clk 0:01:43.1]} 17... b6 {[%clk 0:00:47.9]} 18. Qf2 {[%clk 0:01:42]} 18... c5
{[%clk 0:00:48.2]} 19. h4 {[%clk 0:01:38.1]} 19... Bb5 {[%clk 0:00:48.2]} 20.
Rfe1 {[%clk 0:01:33]} 20... Rad8 {[%clk 0:00:45.8]} 21. h5 {[%clk 0:01:32.9]}
21... Ne5 {[%clk 0:00:45]} 22. Bf1 {[%clk 0:01:24]} 22... Bxf1 {[%clk
0:00:38.5]} 23. Qxf1 {[%clk 0:01:24.9]} 23... Rxd1 {[%clk 0:00:30.9]} 24. Rxd1
{[%clk 0:01:24.8]} 24... Nxg4 {[%clk 0:00:31.1]} 25. Qg2 {[%clk 0:01:13.2]}
25... Nf6 {[%clk 0:00:19.8]} 26. h6 {[%clk 0:01:12.5]} 26... g6 {[%clk
0:00:11.3]} 27. Qg5 {[%clk 0:01:03.8]} 27... c6 {[%clk 0:00:04.1]} 28. Qxf4
{[%clk 0:00:59.2]} 28... Nd5 {[%clk 0:00:04.3]} 29. exd5 {[%clk 0:00:55.3]}
29... Qe2 {[%clk 0:00:02.3]} 30. Qd2 {[%clk 0:00:20.9]} 30... Qxf3 {[%clk
0:00:02.6]} 31. Qg2 {[%clk 0:00:21.2]} 31... Qxd1+ {[%clk 0:00:02.5]} 32. Kh2
{[%clk 0:00:21.7]} 32... Qh5+ {[%clk 0:00:03.1]} 33. Kg1 {[%clk 0:00:21.7]}
33... Qd1+ {[%clk 0:00:03.2]} 34. Kh2 {[%clk 0:00:21.9]} 34... Qh5+ {[%clk
0:00:03.8]} 35. Kg1 {[%clk 0:00:22.1]} 35... Qxd5 {[%clk 0:00:04.7]} 36. Qg4
{[%clk 0:00:18.1]} 36... Qf5 {[%clk 0:00:03.7]} 37. Qc4+ {[%clk 0:00:17.2]}
37... Qf7 {[%clk 0:00:03.5]} 38. Qd3 {[%clk 0:00:15.5]} 38... Qf2+ {[%clk
0:00:03.7]} 39. Kh1 {[%clk 0:00:14.7]} 39... Qf1+ {[%clk 0:00:04.6]} 40. Qxf1
{[%clk 0:00:15.3]} 40... Rxf1+ {[%clk 0:00:05.5]} 41. Kg2 {[%clk 0:00:16.1]}
41... Rc1 {[%clk 0:00:05.9]} 42. Kf3 {[%clk 0:00:16]} 42... Rxc2 {[%clk
0:00:06.8]} 43. Ke4 {[%clk 0:00:16.8]} 43... Kf7 {[%clk 0:00:06.7]} 44. Ke5
{[%clk 0:00:17.3]} 44... Ke7 {[%clk 0:00:07]} 45. Ke4 {[%clk 0:00:16.8]} 45...
Rh2 {[%clk 0:00:07.1]} 46. Kd3 {[%clk 0:00:15.8]} 46... Ke6 {[%clk 0:00:07.4]}
47. Bg7 {[%clk 0:00:15.2]} 47... Rh3+ {[%clk 0:00:08.3]} 48. Kc2 {[%clk
0:00:15.3]} 48... Kd5 {[%clk 0:00:09.2]} 49. Kb1 {[%clk 0:00:15.1]} 49... a4
{[%clk 0:00:09.8]} 50. Ka2 {[%clk 0:00:16]} 50... Kc4 {[%clk 0:00:10.2]} 51. Kb1
{[%clk 0:00:16.5]} 51... g5 {[%clk 0:00:10.6]} 52. Be5 {[%clk 0:00:16.3]} 52...
g4 {[%clk 0:00:11]} 53. Kc2 {[%clk 0:00:16.1]} 53... Rf3 {[%clk 0:00:10.6]} 54.
Bc3 {[%clk 0:00:16.6]} 54... Rf2+ {[%clk 0:00:10.9]} 55. Kb1 {[%clk 0:00:17.1]}
55... Kb3 {[%clk 0:00:10.9]} 56. Kc1 {[%clk 0:00:14.2]} 56... g3 {[%clk
0:00:11.1]} 57. Kd1 {[%clk 0:00:13.8]} 57... g2 {[%clk 0:00:11.3]} 58. Be1
{[%clk 0:00:13.8]} 58... Rxb2 {[%clk 0:00:10]} 59. Kc1 {[%clk 0:00:13.3]} 59...
Rc2+ {[%clk 0:00:10.1]} 60. Kd1 {[%clk 0:00:13.5]} 60... b5 {[%clk 0:00:10.8]}
61. Bd2 {[%clk 0:00:09.9]} 61... g1=Q+ {[%clk 0:00:10.7]} 62. Be1 {[%clk
0:00:10.5]} 62... Qg4# {[%clk 0:00:11.4]} 0-1

[Event "Late-Titled-Tuesday-Blitz-February-20-2024"]
[Site "Chess.com"]
[Date "2024.02.20"]
[Round "9"]
[White "sergiochess83"]
[Black "Fonsofan"]
[Result "1-0"]
[WhiteElo "2917"]
[BlackElo "2692"]
[TimeControl "180+1"]
[EndTime "15:44:58 PST"]
[Termination "sergiochess83 won on time"]

1. d4 {[%clk 0:02:54.8]} 1... d6 {[%clk 0:02:48]} 2. e4 {[%clk 0:02:51.2]} 2...
Nf6 {[%clk 0:02:35.5]} 3. f3 {[%clk 0:02:51.2]} 3... e5 {[%clk 0:02:34.5]} 4.
dxe5 {[%clk 0:02:51]} 4... dxe5 {[%clk 0:02:35.4]} 5. Qxd8+ {[%clk 0:02:50.7]}
5... Kxd8 {[%clk 0:02:36.3]} 6. Bc4 {[%clk 0:02:50.6]} 6... Be6 {[%clk
0:02:36.9]} 7. Bxe6 {[%clk 0:02:50.4]} 7... fxe6 {[%clk 0:02:37.8]} 8. Be3
{[%clk 0:02:41.1]} 8... Nbd7 {[%clk 0:02:26.5]} 9. Nd2 {[%clk 0:02:39.5]} 9...
a6 {[%clk 0:02:16.6]} 10. Nb3 {[%clk 0:02:36]} 10... Bd6 {[%clk 0:02:14.5]} 11.
Nh3 {[%clk 0:02:35.9]} 11... Ke7 {[%clk 0:02:09.5]} 12. Nf2 {[%clk 0:02:35.8]}
12... Rhc8 {[%clk 0:02:07.2]} 13. Ke2 {[%clk 0:02:20.7]} 13... a5 {[%clk
0:01:56.9]} 14. a4 {[%clk 0:02:18.6]} 14... Nb8 {[%clk 0:01:53.1]} 15. c3 {[%clk
0:02:13.1]} 15... Nfd7 {[%clk 0:01:51.8]} 16. Rhd1 {[%clk 0:02:05.2]} 16... Na6
{[%clk 0:01:51.3]} 17. Nxa5 {[%clk 0:01:51.1]} 17... Nac5 {[%clk 0:01:51.8]} 18.
b4 {[%clk 0:01:50]} 18... Rxa5 {[%clk 0:01:46.1]} 19. bxa5 {[%clk 0:01:50.2]}
19... Ra8 {[%clk 0:01:46.8]} 20. Nd3 {[%clk 0:01:40.9]} 20... Nb3 {[%clk
0:01:44.6]} 21. Ra2 {[%clk 0:01:29.2]} 21... Nxa5 {[%clk 0:01:42]} 22. Rb1
{[%clk 0:01:03.1]} 22... b6 {[%clk 0:01:41.1]} 23. Nb4 {[%clk 0:01:01.5]} 23...
Nc5 {[%clk 0:01:04.2]} 24. h4 {[%clk 0:00:57.7]} 24... Nab7 {[%clk 0:00:57.3]}
25. Bxc5 {[%clk 0:00:49.6]} 25... Nxc5 {[%clk 0:00:58.2]} 26. a5 {[%clk
0:00:47.7]} 26... b5 {[%clk 0:00:55.9]} 27. Kd2 {[%clk 0:00:22.4]} 27... Kd7
{[%clk 0:00:55.8]} 28. Kc2 {[%clk 0:00:20.6]} 28... c6 {[%clk 0:00:55.5]} 29.
Rd1 {[%clk 0:00:17.7]} 29... Kc7 {[%clk 0:00:55.1]} 30. Rda1 {[%clk 0:00:11.7]}
30... Ra7 {[%clk 0:00:39.6]} 31. Nd3 {[%clk 0:00:11.8]} 31... Nb7 {[%clk
0:00:36.2]} 32. h5 {[%clk 0:00:11.7]} 32... Ra6 {[%clk 0:00:33.5]} 33. c4 {[%clk
0:00:11.7]} 33... b4 {[%clk 0:00:23.5]} 34. Kb3 {[%clk 0:00:08.8]} 34... c5
{[%clk 0:00:19.3]} 35. g3 {[%clk 0:00:09.1]} 35... Kc6 {[%clk 0:00:17.2]} 36. f4
{[%clk 0:00:09.2]} 36... Ra8 {[%clk 0:00:13.7]} 37. Kc2 {[%clk 0:00:05.1]} 37...
Ra6 {[%clk 0:00:05.8]} 38. Nxe5+ {[%clk 0:00:05]} 38... Bxe5 {[%clk 0:00:05.8]}
39. fxe5 {[%clk 0:00:05.9]} 39... Kd7 {[%clk 0:00:05.7]} 40. Rd1+ {[%clk
0:00:05.6]} 40... Ke7 {[%clk 0:00:05.9]} 41. Rda1 {[%clk 0:00:04.4]} 41... Nd8
{[%clk 0:00:05.3]} 42. Kd3 {[%clk 0:00:03.6]} 42... Nc6 {[%clk 0:00:05.7]} 43.
Ke3 {[%clk 0:00:04.5]} 43... Nxe5 {[%clk 0:00:05.4]} 44. Kf4 {[%clk 0:00:04.6]}
44... Nd3+ {[%clk 0:00:05]} 45. Kg5 {[%clk 0:00:03.9]} 45... Ne5 {[%clk
0:00:05.9]} 46. h6 {[%clk 0:00:03.7]} 46... g6 {[%clk 0:00:05]} 47. Kf4 {[%clk
0:00:03.7]} 47... Nxc4 {[%clk 0:00:05.3]} 48. Rc2 {[%clk 0:00:03.3]} 48... Nd6
{[%clk 0:00:02.5]} 49. Rxc5 {[%clk 0:00:03.5]} 49... e5+ {[%clk 0:00:02.9]} 50.
Rxe5+ {[%clk 0:00:03.5]} 50... Kd7 {[%clk 0:00:03.6]} 51. Rd5 {[%clk 0:00:04.3]}
51... Kc6 {[%clk 0:00:03.8]} 52. Rc1+ {[%clk 0:00:04.5]} 52... Kb7 {[%clk
0:00:03.1]} 53. Rb1 {[%clk 0:00:05.4]} 53... Kc6 {[%clk 0:00:01.4]} 54. Rxb4
{[%clk 0:00:05.5]} 54... Kc7 {[%clk 0:00:01.4]} 55. Rb6 {[%clk 0:00:05.6]} 1-0